fUST/lending_fUST_20241003
["ID","MTS","AMOUNT","RATE_DAILY","PERIOD"]
[339748456,1727935847563,-186.509763,0.00013698,2]
[339748457,1727935847573,-500.0,0.00013698,2]
[339748458,1727935847584,-186.509763,0.00013698,2]
[339748459,1727935847594,-186.509763,0.00013698,2]
[339748460,1727935847603,-586.89498287,0.00013698,2]
[339748461,1727935847613,-981.93,0.00013698,2]
[339748462,1727935847623,-500.0,0.00013698,2]
[339748463,1727935847634,-500.0,0.00013698,2]
[339748464,1727935847645,-919.14,0.00013698,2]
[339748465,1727935847655,-500.0,0.00013698,2]
[339748466,1727935847665,-850.48,0.00013698,2]
[339748467,1727935847675,-500.0,0.00013698,2]
[339748468,1727935847686,-1034.89,0.00013698,2]
[339748469,1727935847696,-500.0,0.00013698,2]
[339748470,1727935847705,-151.0,0.00013698,2]
[339748471,1727935847717,-500.0,0.00013698,2]
[339748472,1727935847727,-500.0,0.00013698,2]
[339748473,1727935847738,-500.0,0.00013698,2]
[339748474,1727935847749,-151.0,0.00013698,2]
[339748475,1727935847759,-510.21162503,0.00013698,2]
[339748476,1727935847768,-151.0,0.00013698,2]
[339748477,1727935847779,-500.0,0.00013698,2]
[339748478,1727935847788,-500.0,0.00013698,2]
[339748479,1727935847798,-501.78454976,0.00013698,2]
[339748480,1727935847807,-500.0,0.00013698,2]
[339748481,1727935847816,-500.0,0.00013698,2]
[339748482,1727935847826,-500.21915935,0.00013698,2]
[339748483,1727935847835,-500.0,0.00013698,2]
[339748484,1727935847844,-500.0,0.00013698,2]
[339748485,1727935847854,-500.0,0.00013698,2]
[339748486,1727935847865,-500.0,0.00013698,2]
[339748487,1727935847875,-620.824726,0.00013698,2]
[339748488,1727935847884,-620.824726,0.00013698,2]
[339748489,1727935847894,-620.824726,0.00013698,2]
[339748490,1727935847906,-620.824726,0.00013698,2]
[339748491,1727935847915,-620.824726,0.00013698,2]
[339748492,1727935847925,-620.824726,0.00013698,2]
[339748493,1727935847935,-1000.0,0.00013698,2]
[339748494,1727935847944,-758.37,0.00013698,2]
[339748495,1727935847953,-500.0,0.00013698,2]
[339748496,1727935847962,-500.0,0.00013698,2]
[339748497,1727935847971,-500.0,0.00013698,2]
[339748498,1727935847981,-620.824726,0.00013698,2]
[339748499,1727935847990,-620.824726,0.00013698,2]
[339748500,1727935848000,-500.0,0.00013698,2]
[339748501,1727935848009,-620.824726,0.00013698,2]
[339748502,1727935848019,-620.824726,0.00013698,2]
[339748503,1727935848028,-620.824726,0.00013698,2]
[339748504,1727935848037,-620.824726,0.00013698,2]
[339748505,1727935848047,-500.0,0.00013698,2]
[339748506,1727935848056,-151.0,0.00013698,2]
[339748507,1727935848065,-151.0,0.00013698,2]
[339748508,1727935848075,-500.0,0.00013698,2]
[339748509,1727935848084,-151.0,0.00013698,2]
[339748510,1727935848093,-500.0,0.00013698,2]
[339748511,1727935848103,-151.0,0.00013698,2]
[339748512,1727935848112,-151.0,0.00013698,2]
[339748513,1727935848122,-500.0,0.00013698,2]
[339748514,1727935848131,-500.0,0.00013698,2]
[339748515,1727935848140,-500.0,0.00013698,2]
[339748516,1727935848150,-500.0,0.00013698,2]
[339748517,1727935848160,-500.0,0.00013698,2]
[339748518,1727935848169,-500.0,0.00013698,2]
[339748519,1727935848178,-501.40285953,0.00013698,2]
[339748520,1727935848188,-500.0,0.00013698,2]
[339748521,1727935848197,-519.60835079,0.00013698,2]
[339748522,1727935848207,-500.0,0.00013698,2]
[339748523,1727935848216,-507.51583152,0.00013698,2]
[339748524,1727935848227,-500.0,0.00013698,2]
[339748525,1727935848238,-618.527408,0.00013698,2]
[339748526,1727935848249,-618.527408,0.00013698,2]
[339748527,1727935848259,-618.527408,0.00013698,2]
[339748528,1727935848268,-618.527408,0.00013698,2]
[339748529,1727935848278,-618.527408,0.00013698,2]
[339748530,1727935848289,-618.527408,0.00013698,2]
[339748531,1727935848298,-618.527408,0.00013698,2]
[339748532,1727935848308,-618.527408,0.00013698,2]
[339748533,1727935848317,-515.12850041,0.00013698,2]
[339748534,1727935848327,-500.0,0.00013698,2]
[339748535,1727935848336,-618.527408,0.00013698,2]
[339748536,1727935848345,-611.85,0.00013698,2]
[339748537,1727935848355,-618.527408,0.00013698,2]
[339748538,1727935848367,-151.0,0.00013698,2]
[339748539,1727935848376,-618.527408,0.00013698,2]
[339748540,1727935848386,-230.254637,0.00013698,2]
[339748541,1727935848395,-500.0,0.00013698,2]
[339748542,1727935848404,-618.527408,0.00013698,2]
[339748543,1727935848413,-754.29,0.00013698,2]
[339748544,1727935848423,-618.527408,0.00013698,2]
[339748545,1727935848433,-618.527408,0.00013698,2]
[339748546,1727935848442,-500.0,0.00013698,2]
[339748547,1727935848452,-618.527408,0.00013698,2]
[339748548,1727935848463,-500.0,0.00013698,2]
[339748549,1727935848473,-618.527408,0.00013698,2]
[339748550,1727935848482,-618.527408,0.00013698,2]
[339748551,1727935848491,-618.527408,0.00013698,2]
[339748552,1727935848501,-220.48138147,0.00013698,2]
[339748553,1727935848510,-548.95000728,0.00013698,2]
[339748554,1727935848521,-529.66,0.00013698,2]
[339748555,1727935848531,-743.16,0.00013698,2]
[339748556,1727935848540,-512.76500707,0.00013698,2]
[339748557,1727935848550,-556.9053088,0.00013698,2]
[339748558,1727935848560,-501.87890681,0.00013698,2]
[339748559,1727935848571,-500.0,0.00013698,2]
[339748560,1727935848581,-533.82479673,0.00013698,2]
[339748561,1727935848591,-500.0,0.00013698,2]
[339748562,1727935848600,-500.0,0.00013698,2]
[339748563,1727935848610,-517.98572264,0.00013698,2]
[339748564,1727935848619,-755.74,0.00013698,2]
[339748565,1727935848629,-500.0,0.00013698,2]
[339748566,1727935848638,-151.0,0.00013698,2]
[339748567,1727935848648,-500.0,0.00013698,2]
[339748568,1727935848657,-151.0,0.00013698,2]
[339748569,1727935848667,-151.0,0.00013698,2]
[339748570,1727935848676,-240.717456,0.00013698,2]
[339748571,1727935848686,-502.05691429,0.00013698,2]
[339748572,1727935848697,-636.58686915,0.00013698,2]
[339748573,1727935848708,-500.0,0.00013698,2]
[339748574,1727935848718,-501.41258368,0.00013698,2]
[339748575,1727935848729,-500.0,0.00013698,2]
[339748576,1727935848740,-500.0,0.00013698,2]
[339748577,1727935848749,-509.39403167,0.00013698,2]
[339748578,1727935848759,-501.14312859,0.00013698,2]
[339748579,1727935848769,-541.98073947,0.00013698,2]
[339748580,1727935848778,-507.2284739,0.00013698,2]
[339748581,1727935848788,-284.97864196,0.00013698,2]
[339748582,1727935848797,-151.0,0.00013698,2]
[339748583,1727935848807,-151.0,0.00013698,2]
[339748584,1727935848817,-151.0,0.00013698,2]
[339748585,1727935848827,-151.0,0.00013698,2]
[339748586,1727935848837,-151.0,0.00013698,2]
[339748587,1727935848847,-151.0,0.00013698,2]
[339748588,1727935848858,-151.0,0.00013698,2]
[339748589,1727935848868,-151.0,0.00013698,2]
[339748590,1727935848878,-162.467761,0.00013698,2]
[339748591,1727935848887,-500.0,0.00013698,2]
[339748592,1727935848897,-970.56,0.00013698,2]
[339748593,1727935848906,-646.56,0.00013698,2]
[339748594,1727935848915,-500.0,0.00013698,2]
[339748595,1727935848925,-194.869054,0.00013698,2]
[339748596,1727935848934,-500.0,0.00013698,2]
[339748597,1727935848944,-501.47465994,0.00013698,2]
[339748598,1727935848954,-500.0,0.00013698,2]
[339748599,1727935848963,-500.0,0.00013698,2]
[339748600,1727935848973,-500.0,0.00013698,2]
[339748601,1727935848982,-500.0,0.00013698,2]
[339748602,1727935848992,-500.0,0.00013698,2]
[339748603,1727935849001,-500.0,0.00013698,2]
[339748604,1727935849010,-1150.35,0.00013698,2]
[339748605,1727935849020,-521.26,0.00013698,2]
[339748606,1727935849030,-500.0,0.00013698,2]
[339748607,1727935849039,-500.0,0.00013698,2]
[339748608,1727935849048,-151.0,0.00013699,2]
[339748609,1727935849058,-151.0,0.00013699,2]
[339748610,1727935849068,-151.0,0.00013699,2]
[339748611,1727935849082,-151.0,0.00013699,2]
[339748612,1727935849091,-266.626442,0.00013699,2]
[339748613,1727935849101,-266.626442,0.00013699,2]
[339748614,1727935849111,-266.626442,0.00013699,2]
[339748615,1727935849123,-266.626442,0.00013699,2]
[339748616,1727935849133,-266.626442,0.00013699,2]
[339748617,1727935849142,-266.626442,0.00013699,2]
[339748618,1727935849153,-266.626442,0.00013699,2]
[339748619,1727935849163,-266.626442,0.00013699,2]
[339748620,1727935849173,-266.626442,0.00013699,2]
[339748621,1727935849183,-266.626442,0.00013699,2]
[339748622,1727935849192,-166.666666,0.00013699,2]
[339748623,1727935849201,-1000.0,0.00013699,2]
[339748624,1727935849210,-1000.0,0.00013699,2]
[339748625,1727935849220,-1000.0,0.00013699,2]
[339748626,1727935849230,-1000.0,0.00013699,2]
[339748627,1727935849239,-13.63652384,0.00013699,2]
[339748630,1727935909219,21.48022149,0.00011164,2]
[339748631,1727935909262,259.21858818,0.00011164,2]
[339748632,1727935909292,219.30119033,0.00011164,2]
[339748641,1727936700084,151.0,0.000209,120]
[339748647,1727936756407,-233.0029864,0.00012554,2]
[339748648,1727936756428,-449.052705,0.00012603,2]
[339748649,1727936756450,-120.75617048,0.0001292,2]
[339748650,1727936838740,-276.03253805,0.0001292,2]
[339748651,1727936842334,-103.21129147,0.0001292,2]
[339748652,1727936842357,-138.10980405,0.000131,2]
[339748772,1727937040388,-614.787652,0.00012603,2]
[339748773,1727937040398,-6027.56634139,0.0001357,2]
[339748774,1727937040410,-300.0,0.00013577,2]
[339748775,1727937040419,-300.0,0.00013577,2]
[339748776,1727937040430,-6340.95048917,0.00013578,2]
[339748777,1727937040440,-209.4588924,0.000136,2]
[339748778,1727937040452,-478.3874726,0.000136,2]
[339748779,1727937040463,-209.4588924,0.000136,2]
[339748780,1727937040472,-1064.314,0.00013669,2]
[339748781,1727937040482,-500.49907927,0.00013673,2]
[339748782,1727937040492,-276.72921146,0.00013678,2]
[339748783,1727937040501,-28670.8543968,0.00013678,2]
[339748784,1727937040510,-1287.28885092,0.00013678,2]
[339748785,1727937040519,-19651.4989124,0.00013688,2]
[339748790,1727937043291,-40993.32099657,0.00013688,2]
[339748797,1727937764225,151.0,0.000209,120]
[339748801,1727937825105,-4339.4924858,0.0001244,2]
[339748802,1727937825129,-1695.3075142,0.00012488,2]
[339748803,1727937825154,-2500.0,0.00012593,2]
[339748804,1727937825178,-426.60007,0.00012603,2]
[339748808,1727937959148,-226.55407128,0.00013165,2]
[339748809,1727937974994,167.0,0.000209,120]
[339748811,1727938045540,-500.0,0.00011164,2]
[339748812,1727938045561,-584.048269,0.00012603,2]
[339748813,1727938045582,-209.4588924,0.000135,2]
[339748814,1727938045606,-182.567009,0.00013506,2]
[339748815,1727938045627,-97.36031041,0.00013506,2]
[339748817,1727938121429,200.0,0.0002,120]
[339748819,1727938135353,200.0,0.00021,120]
[339748820,1727938145174,-500.0,0.00011164,2]
[339748821,1727938195066,268.0,0.00021,120]
[339748822,1727938210109,200.0,0.00021,120]
[339748823,1727938229927,265.43149668,0.00011164,2]
[339748824,1727938229949,231.85098067,0.00011164,2]
[339748825,1727938229970,87.56547653,0.00011164,2]
[339748847,1727938232604,-166.552667,0.0001272,2]
[339748848,1727938232614,-166.552667,0.0001294,2]
[339748849,1727938232624,-166.552667,0.00013161,2]
[339748850,1727938232634,-166.552667,0.00013382,2]
[339748851,1727938232645,-158.15082827,0.00013488,2]
[339748852,1727938232656,-209.4588924,0.000135,2]
[339748853,1727938232668,-153.0,0.000135,2]
[339748854,1727938232679,-153.0,0.000135,2]
[339748855,1727938232688,-153.0,0.000135,2]
[339748856,1727938232698,-85.20669859,0.00013506,2]
[339748857,1727938232708,-158.15082827,0.00013524,2]
[339748858,1727938232718,-158.15082827,0.0001356,2]
[339748859,1727938232728,-5548.33167798,0.00013568,2]
[339748860,1727938232738,-222.0,0.0001359,2]
[339748861,1727938232748,-300.0,0.00013599,2]
[339748862,1727938232758,-300.0,0.00013599,2]
[339748863,1727938232768,-209.4588924,0.000136,2]
[339748864,1727938232777,-209.4588924,0.000136,2]
[339748866,1727938232789,-209.4588924,0.000136,2]
[339748868,1727938232800,-209.4588924,0.000136,2]
[339748870,1727938232810,-209.4588924,0.000136,2]
[339748872,1727938232819,-209.4588924,0.000136,2]
[339748874,1727938232829,-153.4571307,0.000136,2]
[339748876,1727938232840,-209.4588924,0.000136,2]
[339748878,1727938232850,-347.81167718,0.000136,2]
[339748882,1727938238422,-70.43855542,0.000136,2]
[339748883,1727938238432,-13393.7704795,0.0001366,2]
[339748884,1727938238441,-1940.89640876,0.0001366,2]
[339748885,1727938238451,-322.85074671,0.00013668,2]
[339748886,1727938238460,-26787.540959,0.00013668,2]
[339748887,1727938238471,-3881.79281752,0.00013668,2]
[339748888,1727938238480,-13393.7704795,0.0001367,2]
[339748889,1727938238490,-1940.89640876,0.0001367,2]
[339748890,1727938238499,-500.0,0.0001367,2]
[339748891,1727938238509,-500.0,0.00013673,2]
[339748892,1727938238518,-350.55244638,0.00013673,2]
[339748893,1727938238528,-500.0,0.00013673,2]
[339748894,1727938238538,-616.0334139,0.00013673,2]
[339748895,1727938238548,-500.0,0.00013673,2]
[339748896,1727938238558,-500.9831136,0.00013673,2]
[339748897,1727938238569,-500.0,0.00013673,2]
[339748898,1727938238579,-500.0,0.00013673,2]
[339748899,1727938238589,-503.11341653,0.00013673,2]
[339748900,1727938238599,-500.0,0.00013673,2]
[339748901,1727938238608,-503.24524112,0.00013673,2]
[339748902,1727938238618,-8422.00035632,0.00013678,2]
[339748903,1727938238627,-5786.03313117,0.00013678,2]
[339748904,1727938238637,-40181.3114385,0.00013678,2]
[339748905,1727938238647,-5822.68922628,0.00013678,2]
[339748906,1727938238657,-44995.8639636,0.0001368,2]
[339748907,1727938238670,-500.0,0.0001368,2]
[339748908,1727938238680,-500.0,0.0001368,2]
[339748909,1727938238690,-500.0,0.0001368,2]
[339748910,1727938238699,-500.0,0.0001368,2]
[339748911,1727938238709,-500.0,0.0001368,2]
[339748912,1727938238719,-500.0,0.0001368,2]
[339748913,1727938238728,-500.0,0.0001368,2]
[339748914,1727938238738,-500.0,0.0001368,2]
[339748915,1727938238747,-500.0,0.0001368,2]
[339748916,1727938238757,-150.0,0.00013681,2]
[339748917,1727938238766,-151.0,0.00013688,2]
[339748918,1727938238776,-151.0,0.00013688,2]
[339748919,1727938238786,-151.0,0.00013688,2]
[339748920,1727938238800,-151.0,0.00013688,2]
[339748921,1727938238809,-151.0,0.00013688,2]
[339748922,1727938238819,-285.73059,0.00013688,2]
[339748923,1727938238828,-151.0,0.00013688,2]
[339748924,1727938238839,-285.73059,0.00013688,2]
[339748925,1727938238851,-151.0,0.00013688,2]
[339748926,1727938238860,-151.0,0.00013688,2]
[339748927,1727938238872,-151.0,0.00013688,2]
[339748928,1727938238883,-151.0,0.00013688,2]
[339748929,1727938238893,-151.0,0.00013688,2]
[339748930,1727938238904,-151.0,0.00013688,2]
[339748931,1727938238914,-151.0,0.00013688,2]
[339748932,1727938238924,-151.0,0.00013688,2]
[339748933,1727938238935,-151.0,0.00013688,2]
[339748934,1727938238947,-151.0,0.00013688,2]
[339748935,1727938238958,-160.523727,0.00013688,2]
[339748936,1727938238968,-160.523727,0.00013688,2]
[339748937,1727938238978,-160.523727,0.00013688,2]
[339748938,1727938238990,-160.523727,0.00013688,2]
[339748939,1727938239001,-151.0,0.00013688,2]
[339748940,1727938239013,-151.0,0.00013688,2]
[339748941,1727938239023,-151.0,0.00013688,2]
[339748942,1727938239040,-151.0,0.00013688,2]
[339748943,1727938239050,-151.0,0.00013688,2]
[339748944,1727938239060,-151.0,0.00013688,2]
[339748945,1727938239070,-151.0,0.00013688,2]
[339748946,1727938239080,-151.0,0.00013688,2]
[339748947,1727938239090,-281.878196,0.00013688,2]
[339748948,1727938239100,-281.878196,0.00013688,2]
[339748949,1727938239110,-281.878196,0.00013688,2]
[339748950,1727938239120,-281.878196,0.00013688,2]
[339748951,1727938239130,-190.627318,0.00013688,2]
[339748952,1727938239141,-190.627318,0.00013688,2]
[339748953,1727938239153,-190.627318,0.00013688,2]
[339748954,1727938239163,-190.627318,0.00013688,2]
[339748955,1727938239173,-276.905508,0.00013688,2]
[339748956,1727938239183,-151.0,0.00013688,2]
[339748957,1727938239192,-151.0,0.00013688,2]
[339748958,1727938239202,-151.0,0.00013688,2]
[339748959,1727938239211,-151.0,0.00013688,2]
[339748960,1727938239222,-151.0,0.00013688,2]
[339748961,1727938239232,-402.465796,0.00013688,2]
[339748962,1727938239242,-151.0,0.00013688,2]
[339748963,1727938239252,-402.465796,0.00013688,2]
[339748964,1727938239262,-151.0,0.00013688,2]
[339748965,1727938239272,-151.0,0.00013688,2]
[339748966,1727938239282,-402.465796,0.00013688,2]
[339748967,1727938239291,-402.465796,0.00013688,2]
[339748968,1727938239301,-1022.694394,0.00013688,2]
[339748969,1727938239311,-1022.694394,0.00013688,2]
[339748970,1727938239320,-151.0,0.00013688,2]
[339748971,1727938239329,-151.0,0.00013688,2]
[339748972,1727938239339,-1022.694394,0.00013688,2]
[339748973,1727938239349,-151.0,0.00013688,2]
[339748974,1727938239358,-1022.694394,0.00013688,2]
[339748975,1727938239370,-162.467761,0.00013688,2]
[339748976,1727938239381,-151.0,0.00013688,2]
[339748977,1727938239391,-151.0,0.00013688,2]
[339748978,1727938239401,-120543.934316,0.00013688,2]
[339748979,1727938239411,-17468.0676788,0.00013688,2]
[339748980,1727938239421,-3881.79281752,0.00013689,2]
[339748981,1727938239666,-177.533,0.00013689,2]
[339748982,1727938239678,-502.95547008,0.00013698,2]
[339748983,1727938239688,-176.87818235,0.00013698,2]
[339748984,1727938239698,-500.0,0.00013698,2]
[339748985,1727938239708,-500.0,0.00013698,2]
[339748986,1727938239718,-151.0,0.00013698,2]
[339748987,1727938239728,-501.17746495,0.00013698,2]
[339748988,1727938239738,-150.01,0.00013698,2]
[339748989,1727938239748,-2335.95602409,0.00013698,2]
[339748990,1727938239758,-151.0,0.00013698,2]
[339748991,1727938239767,-502.39958623,0.00013698,2]
[339748992,1727938239777,-500.0,0.00013698,2]
[339748993,1727938239786,-500.0,0.00013698,2]
[339748994,1727938239795,-500.0,0.00013698,2]
[339748995,1727938239805,-500.0,0.00013698,2]
[339748996,1727938239815,-556.12372419,0.00013698,2]
[339748997,1727938239824,-500.91033364,0.00013698,2]
[339748998,1727938239834,-500.0,0.00013698,2]
[339748999,1727938239844,-500.0,0.00013698,2]
[339749000,1727938239854,-553.46198688,0.00013698,2]
[339749001,1727938239863,-500.0,0.00013698,2]
[339749002,1727938239873,-151.0,0.00013698,2]
[339749003,1727938239883,-500.0,0.00013698,2]
[339749004,1727938239894,-500.0,0.00013698,2]
[339749005,1727938239904,-577.82,0.00013698,2]
[339749006,1727938239914,-500.0,0.00013698,2]
[339749007,1727938239924,-500.0,0.00013698,2]
[339749008,1727938239934,-500.0,0.00013698,2]
[339749009,1727938239943,-500.0,0.00013698,2]
[339749010,1727938239955,-500.19134765,0.00013698,2]
[339749011,1727938239966,-500.0,0.00013698,2]
[339749012,1727938239976,-500.0,0.00013698,2]
[339749013,1727938239986,-629.98,0.00013698,2]
[339749014,1727938239995,-729.16,0.00013698,2]
[339749015,1727938240005,-500.0,0.00013698,2]
[339749016,1727938240015,-500.35684235,0.00013698,2]
[339749017,1727938240024,-500.0,0.00013698,2]
[339749018,1727938240034,-500.0,0.00013698,2]
[339749019,1727938240043,-500.0,0.00013698,2]
[339749020,1727938240053,-188.64431193,0.00013698,2]
[339749021,1727938240062,-500.0,0.00013698,2]
[339749022,1727938240072,-574.60472432,0.00013698,2]
[339749023,1727938240082,-500.0,0.00013698,2]
[339749024,1727938240092,-501.51114968,0.00013698,2]
[339749025,1727938240102,-502.51873963,0.00013698,2]
[339749026,1727938240111,-500.0,0.00013698,2]
[339749028,1727938240120,-500.0,0.00013698,2]
[339749029,1727938240129,-500.0,0.00013698,2]
[339749030,1727938240139,-500.0,0.00013698,2]
[339749031,1727938240148,-604.98,0.00013698,2]
[339749032,1727938240158,-500.0,0.00013698,2]
[339749033,1727938240168,-500.0,0.00013698,2]
[339749034,1727938240177,-500.0,0.00013698,2]
[339749035,1727938240187,-590.68,0.00013698,2]
[339749036,1727938240196,-500.0,0.00013698,2]
[339749037,1727938240207,-500.0,0.00013698,2]
[339749038,1727938240216,-500.0,0.00013698,2]
[339749039,1727938240226,-230.45779496,0.00013698,2]
[339749040,1727938240236,-500.0,0.00013698,2]
[339749041,1727938240245,-500.0,0.00013698,2]
[339749042,1727938240255,-500.0,0.00013698,2]
[339749043,1727938240264,-500.0,0.00013698,2]
[339749044,1727938240274,-500.0,0.00013698,2]
[339749045,1727938240284,-759.97,0.00013698,2]
[339749046,1727938240294,-500.0,0.00013698,2]
[339749047,1727938240304,-500.0,0.00013698,2]
[339749048,1727938240313,-500.0,0.00013698,2]
[339749049,1727938240323,-500.0,0.00013698,2]
[339749050,1727938240332,-329.10592182,0.00013698,2]
[339749051,1727938240342,-500.0,0.00013698,2]
[339749052,1727938240353,-500.0,0.00013698,2]
[339749053,1727938240362,-500.74461163,0.00013698,2]
[339749054,1727938240372,-500.0,0.00013698,2]
[339749055,1727938240382,-1000.0,0.00013698,2]
[339749056,1727938240392,-500.0,0.00013698,2]
[339749057,1727938240406,-500.0,0.00013698,2]
[339749058,1727938240416,-500.0,0.00013698,2]
[339749059,1727938240426,-664.37,0.00013698,2]
[339749060,1727938240435,-919.14,0.00013698,2]
[339749061,1727938240445,-507.51583152,0.00013698,2]
[339749062,1727938240455,-500.0,0.00013698,2]
[339749063,1727938240464,-500.0,0.00013698,2]
[339749064,1727938240474,-521.72,0.00013698,2]
[339749065,1727938240484,-500.0,0.00013698,2]
[339749066,1727938240494,-500.0,0.00013698,2]
[339749067,1727938240503,-635.6,0.00013698,2]
[339749068,1727938240513,-500.0,0.00013698,2]
[339749069,1727938240522,-500.0,0.00013698,2]
[339749070,1727938240532,-500.0,0.00013698,2]
[339749071,1727938240542,-755.74,0.00013698,2]
[339749072,1727938240552,-507.48414531,0.00013698,2]
[339749073,1727938240561,-500.0,0.00013698,2]
[339749074,1727938240571,-284.97864196,0.00013698,2]
[339749076,1727938240581,-500.0,0.00013698,2]
[339749078,1727938240590,-500.0,0.00013698,2]
[339749080,1727938240600,-500.0,0.00013698,2]
[339749081,1727938240610,-500.0,0.00013698,2]
[339749083,1727938240622,-500.0,0.00013698,2]
[339749084,1727938240633,-500.0,0.00013698,2]
[339749085,1727938240643,-586.89498287,0.00013698,2]
[339749086,1727938240654,-500.0,0.00013698,2]
[339749087,1727938240664,-500.0,0.00013698,2]
[339749088,1727938240673,-500.0,0.00013698,2]
[339749089,1727938240683,-500.0,0.00013698,2]
[339749090,1727938240692,-500.0,0.00013698,2]
[339749091,1727938240701,-151.0,0.00013698,2]
[339749092,1727938240711,-151.0,0.00013698,2]
[339749093,1727938240720,-500.0,0.00013698,2]
[339749094,1727938240730,-500.0,0.00013698,2]
[339749095,1727938240739,-500.0,0.00013698,2]
[339749096,1727938240749,-500.0,0.00013698,2]
[339749097,1727938240759,-500.0,0.00013698,2]
[339749098,1727938240768,-500.0,0.00013698,2]
[339749099,1727938240778,-500.0,0.00013698,2]
[339749100,1727938240788,-1079.25,0.00013698,2]
[339749101,1727938240801,-500.88851412,0.00013698,2]
[339749102,1727938240811,-617.82013953,0.00013698,2]
[339749103,1727938240820,-500.0,0.00013698,2]
[339749104,1727938240830,-500.0,0.00013698,2]
[339749105,1727938240841,-500.0,0.00013698,2]
[339749106,1727938240850,-527.94478923,0.00013698,2]
[339749107,1727938240862,-501.41258368,0.00013698,2]
[339749108,1727938240874,-500.24714373,0.00013698,2]
[339749109,1727938240884,-500.0,0.00013698,2]
[339749110,1727938240894,-501.14312859,0.00013698,2]
[339749111,1727938240904,-500.0,0.00013698,2]
[339749112,1727938240916,-541.98073947,0.00013698,2]
[339749113,1727938240928,-500.0,0.00013698,2]
[339749114,1727938240938,-500.0,0.00013698,2]
[339749115,1727938240950,-500.0,0.00013698,2]
[339749116,1727938240959,-500.0,0.00013698,2]
[339749117,1727938240971,-500.0,0.00013698,2]
[339749118,1727938240981,-500.0,0.00013698,2]
[339749119,1727938240990,-500.98266916,0.00013698,2]
[339749120,1727938241000,-925.38,0.00013698,2]
[339749121,1727938241010,-500.0,0.00013698,2]
[339749122,1727938241020,-504.78295645,0.00013698,2]
[339749123,1727938241030,-970.56,0.00013698,2]
[339749124,1727938241039,-500.0,0.00013698,2]
[339749125,1727938241049,-500.0,0.00013698,2]
[339749126,1727938241059,-500.0,0.00013698,2]
[339749127,1727938241069,-500.0,0.00013698,2]
[339749128,1727938241079,-500.0,0.00013698,2]
[339749129,1727938241089,-500.0,0.00013698,2]
[339749130,1727938241098,-514.09377697,0.00013698,2]
[339749131,1727938241108,-500.0,0.00013698,2]
[339749132,1727938241117,-500.0,0.00013698,2]
[339749133,1727938241126,-612.2,0.00013698,2]
[339749134,1727938241136,-1012.08,0.00013698,2]
[339749135,1727938241146,-500.0,0.00013698,2]
[339749136,1727938241157,-539.09866923,0.00013698,2]
[339749137,1727938241165,-500.34125057,0.00013698,2]
[339749138,1727938241175,-500.0,0.00013698,2]
[339749139,1727938241184,-993.6,0.00013698,2]
[339749140,1727938241194,-500.0,0.00013698,2]
[339749141,1727938241204,-500.0,0.00013698,2]
[339749142,1727938241214,-151.0,0.00013698,2]
[339749143,1727938241223,-500.0,0.00013698,2]
[339749144,1727938241233,-151.0,0.00013698,2]